Workbook

Sheet INSTRUCTIONS
B2: Your business name here | Z2: Forecasted takings | AB2: 8000 | AE2: Budget | AF2: 0.25
AD3: This Rota | AF3: =AF28/AB2 -> 0.0625
A4: Week Ending | C4: MONDAY | F4: TUESDAY | I4: WEDNESDAY | L4: THURSDAY | O4: FRIDAY | R4: SATURDAY | U4: SUNDAY | Y4: Hourly or Salary? | AA4: PAY RATE | AB4: HOURS | AC4: GROSS PAY | AD4: E'ER N.I. | AE4: E'ER PENSION | AF4: TOTAL COST
A5: 23.11.25 | C5: START | D5: FINISH | F5: START | G5: FINISH | I5: START | J5: FINISH | L5: START | M5: FINISH | O5: START | P5: FINISH | R5: START | S5: FINISH | U5: START | V5: FINISH
A7: Name 1 | E7: =IF(C7>D7,(24-((C7-D7)*24)),(D7-C7)*24) -> 0 | H7: =IF(F7>G7,(24-((F7-G7)*24)),(G7-F7)*24) -> 0 | K7: =IF(I7>J7,(24-((I7-J7)*24)),(J7-I7)*24) -> 0 | N7: =IF(L7>M7,(24-((L7-M7)*24)),(M7-L7)*24) -> 0 | Q7: =IF(O7>P7,(24-((O7-P7)*24)),(P7-O7)*24) -> 0 | T7: =IF(R7>S7,(24-((R7-S7)*24)),(S7-R7)*24) -> 0 | W7: =IF(U7>V7,(24-((U7-V7)*24)),(V7-U7)*24) -> 0 | Y7: S | Z7: =IF(A7=A6,"",A7) -> Name 1 | AA7: 500 | AB7: =SUMIF(A:A,Z7,E:E)+SUMIF(A:A,Z7,H:H)+SUMIF(A:A,Z7,K:K)+SUMIF(A:A,Z7,N:N)+SUMIF(A:A,Z7,Q:Q)+SUMIF(A:A,Z7,T:T)+SUMIF(A:A,Z7,W:W) -> 0 | AC7: =IF(Y7="S",AA7,AB7*AA7) -> 500 | AD7: =IF(AC7>=$Z$31,(AC7-$Z$31)*$Z$32,0) -> 0 | AE7: =IF(AC7>=$Z$34,(AC7-$Z$35)*$Z$33,0) -> 0 | AF7: =SUM(AC7:AE7) -> 500 | AH7: H
A8: Name 2 | E8: 0 | H8: 0 | K8: 0 | N8: 0 | Q8: 0 | T8: 0 | W8: 0 | Y8: H | Z8: =IF(A8=A7,"",A8) -> Name 2 | AA8: 15 | AB8: 0 | AC8: =IF(Y8="S",AA8,AB8*AA8) -> 0 | AD8: =IF(AC8>=$Z$31,(AC8-$Z$31)*$Z$32,0) -> 0 | AE8: 0 | AF8: =SUM(AC8:AE8) -> 0 | AH8: S
A9: Name 3 | E9: 0 | H9: 0 | K9: 0 | N9: 0 | Q9: 0 | T9: 0 | W9: 0 | Y9: H | Z9: =IF(A9=A8,"",A9) -> Name 3 | AA9: 15 | AB9: 0 | AC9: 0 | AD9: 0 | AE9: 0 | AF9: 0
A10: Name 4 | E10: =IF(C10>D10,(24-((C10-D10)*24)),(D10-C10)*24) -> 0 | H10: =IF(F10>G10,(24-((F10-G10)*24)),(G10-F10)*24) -> 0 | K10: =IF(I10>J10,(24-((I10-J10)*24)),(J10-I10)*24) -> 0 | N10: =IF(L10>M10,(24-((L10-M10)*24)),(M10-L10)*24) -> 0 | Q10: =IF(O10>P10,(24-((O10-P10)*24)),(P10-O10)*24) -> 0 | T10: =IF(R10>S10,(24-((R10-S10)*24)),(S10-R10)*24) -> 0 | W10: =IF(U10>V10,(24-((U10-V10)*24)),(V10-U10)*24) -> 0 | Y10: H | Z10: =IF(A10=A9,"",A10) -> Name 4 | AA10: 9 | AB10: 0 | AC10: 0 | AD10: 0 | AE10: 0 | AF10: 0
A11: Name 5 | E11: 0 | H11: 0 | K11: 0 | N11: 0 | Q11: 0 | T11: 0 | W11: 0 | Y11: H | Z11: Name 5 | AA11: 8.5 | AB11: 0 | AC11: 0 | AD11: 0 | AE11: 0 | AF11: 0
A12: Name 6 | E12: 0 | H12: 0 | K12: 0 | N12: 0 | Q12: 0 | T12: 0 | W12: 0 | Y12: H | Z12: Name 6 | AA12: 8.5 | AB12: 0 | AC12: 0 | AD12: 0 | AE12: 0 | AF12: 0
A13: Name 7 | E13: 0 | H13: 0 | K13: 0 | N13: 0 | Q13: 0 | T13: 0 | W13: 0 | Y13: H | Z13: Name 7 | AA13: 8.5 | AB13: 0 | AC13: 0 | AD13: 0 | AE13: 0 | AF13: 0
A14: Name 8 | E14: 0 | H14: 0 | K14: 0 | N14: 0 | Q14: 0 | T14: 0 | W14: 0 | Y14: H | Z14: Name 8 | AA14: 7.5 | AB14: 0 | AC14: 0 | AD14: 0 | AE14: 0 | AF14: 0
A15: Name 9 | E15: 0 | H15: 0 | K15: 0 | N15: 0 | Q15: 0 | T15: 0 | W15: 0 | Y15: H | Z15: Name 9 | AA15: 7.5 | AB15: 0 | AC15: 0 | AD15: 0 | AE15: 0 | AF15: 0
A16: Name 10 | E16: 0 | H16: 0 | K16: 0 | N16: 0 | Q16: 0 | T16: 0 | W16: 0 | Y16: H | Z16: Name 10 | AA16: 11 | AB16: 0 | AC16: 0 | AD16: 0 | AE16: 0 | AF16: 0
A17: Name 11 | E17: 0 | H17: 0 | K17: 0 | N17: 0 | Q17: 0 | T17: 0 | W17: 0 | Y17: H | Z17: Name 11 | AA17: 7.5 | AB17: 0 | AC17: 0 | AD17: 0 | AE17: 0 | AF17: 0
E18: 0 | H18: 0 | K18: 0 | N18: 0 | Q18: 0 | T18: 0 | W18: 0 | Y18: H | Z18: 0 | AA18: 7.5 | AB18: 0 | AC18: 0 | AD18: 0 | AE18: 0 | AF18: 0
E19: 0 | H19: 0 | K19: 0 | N19: 0 | Q19: 0 | T19: 0 | W19: 0 | Y19: H | AA19: 7.5 | AB19: 0 | AC19: 0 | AD19: 0 | AE19: 0 | AF19: 0
E20: 0 | H20: 0 | K20: 0 | N20: 0 | Q20: 0 | T20: 0 | W20: 0 | Y20: H | AA20: 7.5 | AB20: 0 | AC20: 0 | AD20: 0 | AE20: 0 | AF20: 0
E21: 0 | H21: 0 | K21: 0 | N21: 0 | Q21: 0 | T21: 0 | W21: 0 | Y21: H | AA21: 7.5 | AB21: 0 | AC21: 0 | AD21: 0 | AE21: 0 | AF21: 0
E22: 0 | H22: 0 | K22: 0 | N22: 0 | Q22: 0 | T22: 0 | W22: 0 | Y22: H | AA22: 7 | AB22: 0 | AC22: 0 | AD22: 0 | AE22: 0 | AF22: 0
E23: 0 | H23: 0 | K23: 0 | N23: 0 | Q23: 0 | T23: 0 | W23: 0 | Y23: H | AA23: 7.5 | AB23: 0 | AC23: 0 | AD23: 0 | AE23: 0 | AF23: 0
E24: 0 | H24: 0 | K24: 0 | N24: 0 | Q24: 0 | T24: 0 | W24: 0 | Y24: H | AA24: 7.5 | AB24: 0 | AC24: 0 | AD24: 0 | AE24: 0 | AF24: 0
E25: 0 | H25: 0 | K25: 0 | N25: 0 | Q25: 0 | T25: 0 | W25: 0 | Y25: H | AA25: 7.5 | AB25: 0 | AC25: 0 | AD25: 0 | AE25: 0 | AF25: 0
E26: 0 | H26: 0 | K26: 0 | N26: 0 | Q26: 0 | T26: 0 | W26: 0 | Y26: H | AA26: 7.5 | AB26: 0 | AC26: 0 | AD26: 0 | AE26: 0 | AF26: 0
AA28: TOTALS | AC28: =SUM(AC7:AC26) -> 500 | AD28: =SUM(AD7:AD26) -> 0 | AE28: 0 | AF28: 500
AA31: Secondary threshold (weekly)
AA32: Secondary Class 1 NIC
AA33: Employer contribution
AA34: Enrollment threshold
AA35: Pension threshold
AA36: Holiday accrual % | AD36: www.roslyns.co.uk

Sheet FULL ROTA
B2: My Vet - Bristol | Z2: Forecasted takings | AB2: 25000 | AE2: Budget | AF2: 0.35 | AK2: Yes
AD3: This Rota | AF3: =AF28/(AB2/1.2) -> 0.344811058 | AK3: No
A4: Week Ending | C4: MONDAY | F4: TUESDAY | I4: WEDNESDAY | L4: THURSDAY | O4: FRIDAY | R4: SATURDAY | U4: SUNDAY | Y4: Hourly or Salary? | AA4: PAY RATE | AB4: HOURS | AC4: GROSS PAY | AD4: E'ER N.I. | AE4: E'ER PENSION | AF4: TOTAL COST | AG4: Pension?
A5: 23.11.25 | C5: START | D5: FINISH | F5: START | G5: FINISH | I5: START | J5: FINISH | L5: START | M5: FINISH | O5: START | P5: FINISH | R5: START | S5: FINISH | U5: START | V5: FINISH
A7: Practice manager | C7: 08:00:00 | D7: 16:00:00 | E7: =IF(C7>D7,(24-((C7-D7)*24)),(D7-C7)*24) -> 8 | F7: 12:00:00 | G7: 18:00:00 | H7: =IF(F7>G7,(24-((F7-G7)*24)),(G7-F7)*24) -> 6 | I7: 08:00:00 | J7: 16:00:00 | K7: =IF(I7>J7,(24-((I7-J7)*24)),(J7-I7)*24) -> 8 | L7: 12:00:00 | M7: 18:00:00 | N7: =IF(L7>M7,(24-((L7-M7)*24)),(M7-L7)*24) -> 6 | O7: 08:00:00 | P7: 16:00:00 | Q7: =IF(O7>P7,(24-((O7-P7)*24)),(P7-O7)*24) -> 8 | R7: 12:00:00 | S7: 18:00:00 | T7: =IF(R7>S7,(24-((R7-S7)*24)),(S7-R7)*24) -> 6 | W7: =IF(U7>V7,(24-((U7-V7)*24)),(V7-U7)*24) -> 0 | Y7: S | Z7: =IF(A7=A6,"",A7) -> Practice manager | AA7: 961.54 | AB7: =SUMIF(A:A,Z7,E:E)+SUMIF(A:A,Z7,H:H)+SUMIF(A:A,Z7,K:K)+SUMIF(A:A,Z7,N:N)+SUMIF(A:A,Z7,Q:Q)+SUMIF(A:A,Z7,T:T)+SUMIF(A:A,Z7,W:W) -> 42 | AC7: =IF(Y7="S",AA7,AB7*AA7) -> 961.54 | AD7: =IF(AC7>=$Z$31,(AC7-$Z$31)*$Z$32,0) -> 129.8079231 | AE7: =IF(AG7="No", 0, IF(AC7>=$Z$34, (AC7-$Z$35)*$Z$33, 0)) -> 25.2462 | AF7: =SUM(AC7:AE7) -> 1116.594123 | AG7: Yes | AH7: H
A8: Asst practise manager | C8: 12:00:00 | D8: 18:00:00 | E8: 6 | F8: 08:00:00 | G8: 16:00:00 | H8: 8 | I8: 12:00:00 | J8: 18:00:00 | K8: 6 | L8: 08:00:00 | M8: 16:00:00 | N8: 8 | O8: 12:00:00 | P8: 18:00:00 | Q8: 6 | R8: 08:00:00 | S8: 16:00:00 | T8: 8 | W8: 0 | Y8: S | Z8: =IF(A8=A7,"",A8) -> Asst practise manager | AA8: 673.08 | AB8: 42 | AC8: =IF(Y8="S",AA8,AB8*AA8) -> 673.08 | AD8: =IF(AC8>=$Z$31,(AC8-$Z$31)*$Z$32,0) -> 86.53892308 | AE8: =IF(AG8="No", 0, IF(AC8>=$Z$34, (AC8-$Z$35)*$Z$33, 0)) -> 16.5924 | AF8: =SUM(AC8:AE8) -> 776.2113231 | AG8: Yes | AH8: S
A9: Receptionist | C9: 09:00:00 | D9: 17:00:00 | E9: 8 | F9: 09:00:00 | G9: 17:00:00 | H9: 8 | I9: 09:00:00 | J9: 17:00:00 | K9: 8 | L9: 09:00:00 | M9: 17:00:00 | N9: 8 | O9: 09:00:00 | P9: 17:00:00 | Q9: 8 | R9: 09:00:00 | S9: 17:00:00 | T9: 8 | W9: 0 | Y9: H | Z9: =IF(A9=A8,"",A9) -> Receptionist | AA9: 12 | AB9: 48 | AC9: 576 | AD9: 71.97692308 | AE9: 13.68 | AF9: 661.6569231 | AG9: Yes
A10: Head Vet | C10: 08:00:00 | D10: 16:00:00 | E10: =IF(C10>D10,(24-((C10-D10)*24)),(D10-C10)*24) -> 8 | F10: 08:00:00 | G10: 16:00:00 | H10: =IF(F10>G10,(24-((F10-G10)*24)),(G10-F10)*24) -> 8 | K10: =IF(I10>J10,(24-((I10-J10)*24)),(J10-I10)*24) -> 0 | L10: 08:00:00 | M10: 16:00:00 | N10: =IF(L10>M10,(24-((L10-M10)*24)),(M10-L10)*24) -> 8 | O10: 08:00:00 | P10: 16:00:00 | Q10: =IF(O10>P10,(24-((O10-P10)*24)),(P10-O10)*24) -> 8 | R10: 08:00:00 | S10: 16:00:00 | T10: =IF(R10>S10,(24-((R10-S10)*24)),(S10-R10)*24) -> 8 | U10: 08:00:00 | V10: 14:00:00 | W10: =IF(U10>V10,(24-((U10-V10)*24)),(V10-U10)*24) -> 6 | Y10: S | Z10: =IF(A10=A9,"",A10) -> Head Vet | AA10: 1346.15 | AB10: 46 | AC10: 1346.15 | AD10: 187.4994231 | AE10: 36.7845 | AF10: 1570.433923 | AG10: Yes
A11: F/T Vet | C11: 09:00:00 | D11: 17:00:00 | E11: 8 | F11: 09:00:00 | G11: 17:00:00 | H11: 8 | I11: 08:00:00 | J11: 16:00:00 | K11: 8 | N11: 0 | Q11: 0 | R11: 09:00:00 | S11: 17:00:00 | T11: 8 | U11: 08:00:00 | V11: 14:00:00 | W11: 6 | Y11: S | Z11: F/T Vet | AA11: 769.23 | AB11: 38 | AC11: 769.23 | AD11: 100.9614231 | AE11: 19.4769 | AF11: 889.6683231 | AG11: Yes
A12: F/T Vet 2 | E12: 0 | F12: 09:00:00 | G12: 17:00:00 | H12: 8 | I12: 08:00:00 | J12: 16:00:00 | K12: 8 | L12: 09:00:00 | M12: 17:00:00 | N12: 8 | O12: 09:00:00 | P12: 17:00:00 | Q12: 8 | T12: 0 | W12: 0 | Y12: S | Z12: F/T Vet 2 | AA12: 769.23 | AB12: 32 | AC12: 769.23 | AD12: 100.9614231 | AE12: 19.4769 | AF12: 889.6683231 | AG12: Yes
A13: Vet nurse | C13: 09:00:00 | D13: 17:00:00 | E13: 8 | H13: 0 | K13: 0 | L13: 09:00:00 | M13: 17:00:00 | N13: 8 | Q13: 0 | T13: 0 | U13: 08:00:00 | V13: 14:00:00 | W13: 6 | Y13: H | Z13: Vet nurse | AA13: 17 | AB13: 22 | AC13: 374 | AD13: 41.67692308 | AE13: 7.62 | AF13: 423.2969231 | AG13: Yes
A14: Vet nurse 2 | C14: 09:00:00 | D14: 17:00:00 | E14: 8 | H14: 0 | I14: 08:00:00 | J14: 16:00:00 | K14: 8 | N14: 0 | O14: 09:00:00 | P14: 17:00:00 | Q14: 8 | R14: 09:00:00 | S14: 17:00:00 | T14: 8 | W14: 0 | Y14: H | Z14: Vet nurse 2 | AA14: 13 | AB14: 32 | AC14: 416 | AD14: 47.97692308 | AE14: 8.88 | AF14: 472.8569231 | AG14: Yes
A15: Vet nurse 3 | E15: 0 | F15: 09:00:00 | G15: 17:00:00 | H15: 8 | K15: 0 | L15: 09:00:00 | M15: 17:00:00 | N15: 8 | O15: 09:00:00 | P15: 17:00:00 | Q15: 8 | R15: 09:00:00 | S15: 17:00:00 | T15: 8 | U15: 08:00:00 | V15: 16:00:00 | W15: 8 | Y15: H | Z15: Vet nurse 3 | AA15: 8.5 | AB15: 40 | AC15: 340 | AD15: 36.57692308 | AE15: 6.6 | AF15: 383.1769231 | AG15: Yes
E16: 0 | H16: 0 | K16: 0 | N16: 0 | Q16: 0 | T16: 0 | W16: 0 | Y16: H | Z16: 0 | AA16: 11 | AB16: 0 | AC16: 0 | AD16: 0 | AE16: 0 | AF16: 0 | AG16: Yes
E17: 0 | H17: 0 | K17: 0 | N17: 0 | Q17: 0 | T17: 0 | W17: 0 | Y17: H | AA17: 7.5 | AB17: 0 | AC17: 0 | AD17: 0 | AE17: 0 | AF17: 0 | AG17: Yes
E18: 0 | H18: 0 | K18: 0 | N18: 0 | Q18: 0 | T18: 0 | W18: 0 | Y18: H | AA18: 7.5 | AB18: 0 | AC18: 0 | AD18: 0 | AE18: 0 | AF18: 0 | AG18: Yes
E19: 0 | H19: 0 | K19: 0 | N19: 0 | Q19: 0 | T19: 0 | W19: 0 | Y19: H | AA19: 7.5 | AB19: 0 | AC19: 0 | AD19: 0 | AE19: 0 | AF19: 0 | AG19: Yes
E20: 0 | H20: 0 | K20: 0 | N20: 0 | Q20: 0 | T20: 0 | W20: 0 | Y20: H | AA20: 7.5 | AB20: 0 | AC20: 0 | AD20: 0 | AE20: 0 | AF20: 0 | AG20: Yes
E21: 0 | H21: 0 | K21: 0 | N21: 0 | Q21: 0 | T21: 0 | W21: 0 | Y21: H | AA21: 7.5 | AB21: 0 | AC21: 0 | AD21: 0 | AE21: 0 | AF21: 0 | AG21: Yes
E22: 0 | H22: 0 | K22: 0 | N22: 0 | Q22: 0 | T22: 0 | W22: 0 | Y22: H | AA22: 7 | AB22: 0 | AC22: 0 | AD22: 0 | AE22: 0 | AF22: 0 | AG22: Yes
E23: 0 | H23: 0 | K23: 0 | N23: 0 | Q23: 0 | T23: 0 | W23: 0 | Y23: H | AA23: 7.5 | AB23: 0 | AC23: 0 | AD23: 0 | AE23: 0 | AF23: 0 | AG23: Yes
E24: 0 | H24: 0 | K24: 0 | N24: 0 | Q24: 0 | T24: 0 | W24: 0 | Y24: H | AA24: 7.5 | AB24: 0 | AC24: 0 | AD24: 0 | AE24: 0 | AF24: 0 | AG24: Yes
E25: 0 | H25: 0 | K25: 0 | N25: 0 | Q25: 0 | T25: 0 | W25: 0 | Y25: H | AA25: 7.5 | AB25: 0 | AC25: 0 | AD25: 0 | AE25: 0 | AF25: 0 | AG25: Yes
E26: 0 | H26: 0 | K26: 0 | N26: 0 | Q26: 0 | T26: 0 | W26: 0 | Y26: H | AA26: 7.5 | AB26: 0 | AC26: 0 | AD26: 0 | AE26: 0 | AF26: 0 | AG26: Yes | AW26: FALSE
AA28: TOTALS | AC28: =SUM(AC7:AC26) -> 6225.23 | AD28: =SUM(AD7:AD26) -> 803.9768077 | AE28: 154.3569 | AF28: =IF(AW26=TRUE, AI28 + (AI28 * Z36), AI28) -> 7183.563708 | AI28: =SUM(AF7:AF26) -> 7183.563708
Z31: 96.15384615 | AA31: Secondary threshold (weekly)
Z32: 0.15 | AA32: Secondary Class 1 NIC
Z33: 0.03 | AA33: Employer contribution
Z34: 192 | AA34: Enrollment threshold
Z35: 120 | AA35: Pension threshold
Z36: 0.1207 | AA36: Holiday accrual % | AD36: www.roslyns.co.uk
